fUST/lending_fUST_20251231
["ID","MTS","AMOUNT","RATE_DAILY","PERIOD"]
[400139978,1767148240139,-1844.15,0.00013698,2]
[400139979,1767148240148,-1844.15,0.00013698,2]
[400139981,1767148240158,-1844.15,0.00013698,2]
[400139983,1767148240168,-1844.15,0.00013698,2]
[400139985,1767148240178,-1844.15,0.00013698,2]
[400139987,1767148240187,-1844.15,0.00013698,2]
[400139989,1767148240197,-1844.15,0.00013698,2]
[400139991,1767148240206,-1844.15,0.00013698,2]
[400139993,1767148240216,-1844.15,0.00013698,2]
[400139995,1767148240225,-1844.15,0.00013698,2]
[400139997,1767148240234,-1844.37,0.00013698,2]
[400139998,1767148240243,-500.0,0.00013698,2]
[400140000,1767148240253,-262.16767073,0.00013698,2]
[400140002,1767148240262,-1000.0,0.00013699,2]
[400140004,1767148240272,-15190.8953183,0.00013699,2]
[400140006,1767148240281,-745.651783,0.00013699,2]
[400140008,1767148240291,-500.0,0.00013699,2]
[400140010,1767148240301,-500.0,0.00013699,2]
[400140012,1767148240310,-500.0,0.00013699,2]
[400140014,1767148240320,-500.0,0.00013699,2]
[400140016,1767148240334,-500.0,0.00013699,2]
[400140019,1767148240355,-500.0,0.00013699,2]
[400140021,1767148240375,-159.68059141,0.00013699,2]
[400140023,1767148240396,-500.0,0.00013699,2]
[400140025,1767148240415,-500.0,0.00013699,2]
[400140027,1767148240435,-500.0,0.00013699,2]
[400140028,1767148240450,-500.0,0.00013699,2]
[400140030,1767148240464,-500.0,0.00013699,2]
[400140031,1767148240485,-500.0,0.00013699,2]
[400140033,1767148240504,-500.0,0.00013699,2]
[400140035,1767148240514,-500.0,0.00013699,2]
[400140037,1767148240525,-500.0,0.00013699,2]
[400140038,1767148240536,-565.555714,0.00013699,2]
[400140040,1767148240547,-500.0,0.00013699,2]
[400140041,1767148240558,-150.35034149,0.00013699,2]
[400140043,1767148240568,-500.0,0.00013699,2]
[400140045,1767148240579,-500.0,0.00013699,2]
[400140046,1767148240589,-500.0,0.00013699,2]
[400140048,1767148240600,-303.93264249,0.00013699,2]
[400140049,1767148240609,-500.0,0.00013699,2]
[400140051,1767148240620,-501.4710254,0.00013699,2]
[400140053,1767148240630,-500.0,0.00013699,2]
[400140055,1767148240641,-500.0,0.00013699,2]
[400140056,1767148240650,-500.0,0.00013699,2]
[400140058,1767148240662,-500.0,0.00013699,2]
[400140060,1767148240671,-500.0,0.00013699,2]
[400140062,1767148240682,-500.0,0.00013699,2]
[400140064,1767148240693,-500.0,0.00013699,2]
[400140067,1767148240704,-500.0,0.00013699,2]
[400140069,1767148240715,-500.0,0.00013699,2]
[400140070,1767148240725,-500.0,0.00013699,2]
[400140072,1767148240735,-500.0,0.00013699,2]
[400140073,1767148240745,-500.0,0.00013699,2]
[400140074,1767148240757,-500.0,0.00013699,2]
[400140075,1767148240767,-500.0,0.00013699,2]
[400140076,1767148240778,-346.46150426,0.00013699,2]
[400140077,1767148240789,-500.0,0.00013699,2]
[400140078,1767148240799,-500.0,0.00013699,2]
[400140079,1767148240808,-500.0,0.00013699,2]
[400140080,1767148240819,-500.0,0.00013699,2]
[400140081,1767148240829,-344.71637908,0.00013699,2]
[400140082,1767148240839,-500.48900482,0.00013699,2]
[400140083,1767148240848,-510.7161434,0.00013699,2]
[400140084,1767148240857,-500.0,0.00013699,2]
[400140085,1767148240867,-158.39206841,0.00013699,2]
[400140086,1767148240876,-500.0,0.00013699,2]
[400140087,1767148240885,-178.08460977,0.00013699,2]
[400140088,1767148240895,-500.0,0.00013699,2]
[400140089,1767148240904,-307.59957655,0.00013699,2]
[400140090,1767148240913,-500.35582996,0.00013699,2]
[400140091,1767148240922,-318.82320631,0.00013699,2]
[400140092,1767148240931,-366.01001326,0.00013699,2]
[400140093,1767148240941,-500.0,0.00013699,2]
[400140094,1767148240950,-525.82485317,0.00013699,2]
[400140095,1767148240960,-158.10807846,0.00013699,2]
[400140096,1767148240969,-500.0,0.00013699,2]
[400140097,1767148240979,-500.0,0.00013699,2]
[400140098,1767148240988,-500.0,0.00013699,2]
[400140099,1767148240998,-441.0753747,0.00013699,2]
[400140100,1767148241140,-500.0,0.00013699,2]
[400140101,1767148241150,-165.03764715,0.00013699,2]
[400140102,1767148241160,-500.0,0.00013699,2]
[400140103,1767148241170,-500.0,0.00013699,2]
[400140104,1767148241179,-500.0,0.00013699,2]
[400140105,1767148241189,-500.0,0.00013699,2]
[400140106,1767148241198,-500.0,0.00013699,2]
[400140107,1767148241207,-500.0,0.00013699,2]
[400140108,1767148241216,-500.0,0.00013699,2]
[400140109,1767148241225,-500.0,0.00013699,2]
[400140110,1767148241235,-163.65866633,0.00013699,2]
[400140111,1767148241244,-500.0,0.00013699,2]
[400140112,1767148241255,-500.0,0.00013699,2]
[400140113,1767148241265,-500.0,0.00013699,2]
[400140114,1767148241276,-267.53598313,0.00013699,2]
[400140115,1767148241285,-500.0,0.00013699,2]
[400140116,1767148241295,-500.0,0.00013699,2]
[400140117,1767148241305,-500.0,0.00013699,2]
[400140118,1767148241315,-500.0,0.00013699,2]
[400140119,1767148241324,-500.0,0.00013699,2]
[400140120,1767148241334,-500.0,0.00013699,2]
[400140121,1767148241344,-254.02465024,0.00013699,2]
[400140122,1767148241353,-500.0,0.00013699,2]
[400140123,1767148241363,-500.0,0.00013699,2]
[400140124,1767148241372,-500.0,0.00013699,2]
[400140125,1767148241382,-500.0,0.00013699,2]
[400140126,1767148241391,-500.0,0.00013699,2]
[400140127,1767148241402,-500.0,0.00013699,2]
[400140128,1767148241411,-500.0,0.00013699,2]
[400140129,1767148241421,-500.0,0.00013699,2]
[400140130,1767148241431,-500.0,0.00013699,2]
[400140131,1767148241440,-500.0,0.00013699,2]
[400140132,1767148241449,-500.0,0.00013699,2]
[400140133,1767148241459,-500.0,0.00013699,2]
[400140134,1767148241468,-500.0,0.00013699,2]
[400140135,1767148241478,-500.0,0.00013699,2]
[400140136,1767148241487,-213.3181846,0.00013699,2]
[400140137,1767148241497,-500.0,0.00013699,2]
[400140138,1767148241506,-7762.746869,0.00013749,2]
[400140139,1767148241515,-3113.22631544,0.00013749,2]
[400140140,1767148241525,-151.0,0.000138,2]
[400140141,1767148241536,-500.0,0.00013821,2]
[400140142,1767148241546,-501.03935192,0.00013821,2]
[400140143,1767148241556,-1000.0,0.00013821,2]
[400140144,1767148241565,-924.3864781,0.00013821,2]
[400140145,1767148241575,-660.63497667,0.00013821,2]
[400140146,1767148241584,-1000.0,0.00013821,2]
[400140147,1767148241593,-1000.0,0.00013821,2]
[400140148,1767148241603,-1000.0,0.00013821,2]
[400140149,1767148241612,-502.50925578,0.00013821,2]
[400140150,1767148241622,-1000.0,0.00013821,2]
[400140151,1767148241631,-1000.0,0.00013821,2]
[400140152,1767148241640,-1000.0,0.00013821,2]
[400140153,1767148241650,-1000.0,0.00013821,2]
[400140154,1767148241659,-1000.0,0.00013821,2]
[400140155,1767148241668,-1000.0,0.00013821,2]
[400140156,1767148241678,-1000.0,0.00013821,2]
[400140157,1767148241687,-677.12142034,0.00013821,2]
[400140158,1767148241696,-1000.0,0.00013821,2]
[400140159,1767148241705,-1000.0,0.00013821,2]
[400140160,1767148241715,-1000.0,0.00013821,2]
[400140161,1767148241724,-1000.0,0.00013821,2]
[400140162,1767148241733,-1000.0,0.00013821,2]
[400140163,1767148241743,-520.05984388,0.00013821,2]
[400140164,1767148241755,-331.59541923,0.00013821,2]
[400140165,1767148241764,-1000.0,0.00013821,2]
[400140166,1767148241774,-529.84736886,0.00013821,2]
[400140167,1767148241783,-1000.0,0.00013821,2]
[400140168,1767148241795,-1000.0,0.00013821,2]
[400140169,1767148241805,-1000.0,0.00013821,2]
[400140170,1767148241816,-1000.0,0.00013821,2]
[400140171,1767148241825,-852.87208667,0.00013821,2]
[400140172,1767148241835,-881.16221649,0.00013821,2]
[400140173,1767148241845,-1000.0,0.00013821,2]
[400140174,1767148241854,-1000.0,0.00013821,2]
[400140175,1767148241864,-1000.0,0.00013821,2]
[400140176,1767148241873,-1000.0,0.00013821,2]
[400140177,1767148241883,-1000.0,0.00013821,2]
[400140178,1767148241893,-1000.0,0.00013821,2]
[400140179,1767148241903,-1000.0,0.00013821,2]
[400140180,1767148241912,-499.96763801,0.00013821,2]
[400140181,1767148241922,-1000.0,0.00013821,2]
[400140182,1767148241932,-1000.0,0.00013821,2]
[400140183,1767148241940,-1000.0,0.00013821,2]
[400140184,1767148241950,-1000.0,0.00013821,2]
[400140185,1767148241959,-1000.0,0.00013821,2]
[400140186,1767148241969,-1000.0,0.00013821,2]
[400140187,1767148241978,-494.0031485,0.00013821,2]
[400140188,1767148241987,-1000.0,0.00013821,2]
[400140189,1767148241997,-205.30476225,0.00013821,2]
[400140190,1767148242006,-1000.0,0.00013821,2]
[400140191,1767148242015,-1000.0,0.00013821,2]
[400140192,1767148242025,-1000.0,0.00013821,2]
[400140193,1767148242034,-459.90209075,0.00013821,2]
[400140194,1767148242044,-501.2076363,0.00013821,2]
[400140195,1767148242053,-1000.0,0.00013821,2]
[400140196,1767148242063,-1000.0,0.00013821,2]
[400140197,1767148242073,-1000.0,0.00013821,2]
[400140198,1767148242083,-159.94685378,0.00013821,2]
[400140199,1767148242092,-1359.46767772,0.00013865,2]
[400140200,1767148242102,-720.0,0.00013865,2]
[400140201,1767148242111,-1732.102952,0.00013924,2]
[400140202,1767148242121,-163.51788502,0.00013973,2]
[400140203,1767148242130,-2604.72,0.00013991,2]
[400140204,1767148242139,-500.0,0.00014095,2]
[400140205,1767148242148,-151.0,0.000141,2]
[400140206,1767148242157,-600.0,0.00014221,2]
[400140207,1767148242167,-1000.0,0.00014247,2]
[400140208,1767148242176,-1000.0,0.00014247,2]
[400140209,1767148242186,-1000.0,0.00014247,2]
[400140210,1767148242196,-1000.0,0.00014247,2]
[400140211,1767148242205,-1000.0,0.00014247,2]
[400140212,1767148242215,-1000.0,0.00014247,2]
[400140213,1767148242224,-500.4478313,0.00014247,2]
[400140214,1767148242234,-1000.0,0.00014247,2]
[400140215,1767148242244,-1000.0,0.00014247,2]
[400140216,1767148242253,-1000.0,0.00014247,2]
[400140217,1767148242262,-1000.0,0.00014247,2]
[400140218,1767148242272,-1000.0,0.00014247,2]
[400140219,1767148242281,-500.68443154,0.00014247,2]
[400140220,1767148242291,-1000.0,0.00014247,2]
[400140221,1767148242300,-1000.0,0.00014247,2]
[400140222,1767148242310,-911.90264951,0.00014247,2]
[400140223,1767148242319,-1000.0,0.00014247,2]
[400140224,1767148242329,-1000.0,0.00014247,2]
[400140225,1767148242338,-609.17214565,0.00014247,2]
[400140226,1767148242347,-1000.0,0.00014247,2]
[400140227,1767148242357,-1000.0,0.00014247,2]
[400140228,1767148242367,-1000.0,0.00014247,2]
[400140229,1767148242376,-1000.0,0.00014247,2]
[400140230,1767148242385,-1000.75482131,0.00014247,2]
[400140231,1767148242395,-1000.0,0.00014247,2]
[400140232,1767148242404,-1000.0,0.00014247,2]
[400140233,1767148242414,-1000.0,0.00014247,2]
[400140234,1767148242424,-1000.0,0.00014247,2]
[400140235,1767148242435,-433.15519118,0.00014247,2]
[400140236,1767148242444,-908.24491784,0.00014247,2]
[400140237,1767148242453,-251.84601956,0.00014247,2]
[400140238,1767148242463,-1000.0,0.00014247,2]
[400140239,1767148242473,-500.48099046,0.00014247,2]
[400140240,1767148242482,-1000.0,0.00014247,2]
[400140241,1767148242493,-1000.0,0.00014247,2]
[400140242,1767148242502,-1000.0,0.00014247,2]
[400140243,1767148242513,-1000.0,0.00014247,2]
[400140244,1767148242522,-1000.0,0.00014247,2]
[400140245,1767148242532,-1000.0,0.00014247,2]
[400140246,1767148242542,-1000.0,0.00014247,2]
[400140247,1767148242551,-1000.0,0.00014247,2]
[400140248,1767148242561,-1000.0,0.00014247,2]
[400140249,1767148242571,-439.97362328,0.00014247,2]
[400140250,1767148242580,-1000.0,0.00014247,2]
[400140251,1767148242589,-1000.0,0.00014247,2]
[400140252,1767148242599,-1000.0,0.00014247,2]
[400140253,1767148242608,-1000.0,0.00014247,2]
[400140254,1767148242617,-1000.0,0.00014247,2]
[400140255,1767148242626,-1000.0,0.00014247,2]
[400140256,1767148242636,-1000.0,0.00014247,2]
[400140257,1767148242645,-537.58100831,0.00014247,2]
[400140258,1767148242655,-1141.36512345,0.00014247,2]
[400140259,1767148242664,-1000.0,0.00014247,2]
[400140260,1767148242673,-842.07137515,0.00014247,2]
[400140261,1767148242683,-1000.0,0.00014247,2]
[400140262,1767148242692,-1000.0,0.00014247,2]
[400140263,1767148242702,-1000.0,0.00014247,2]
[400140264,1767148242711,-1000.0,0.00014247,2]
[400140265,1767148242721,-1000.0,0.00014247,2]
[400140266,1767148242731,-1000.0,0.00014247,2]
[400140267,1767148242740,-1000.0,0.00014247,2]
[400140268,1767148242754,-1000.0,0.00014247,2]
[400140269,1767148242764,-1000.0,0.00014247,2]
[400140270,1767148242774,-1000.0,0.00014247,2]
[400140271,1767148242783,-1000.0,0.00014247,2]
[400140272,1767148242794,-1000.0,0.00014247,2]
[400140273,1767148242804,-1000.0,0.00014247,2]
[400140274,1767148242813,-1000.0,0.00014247,2]
[400140275,1767148242822,-1000.0,0.00014247,2]
[400140276,1767148242831,-151.0,0.000143,2]
[400140277,1767148242841,-322.94627151,0.00014326,2]
[400140278,1767148242851,-544.63270575,0.00014368,2]
[400140279,1767148242860,-501.81918671,0.00014368,2]
[400140280,1767148242869,-1464.3277621,0.00014368,2]
[400140281,1767148242879,-850.60008768,0.00014368,2]
[400140282,1767148242888,-305.16629448,0.00014368,2]
[400140283,1767148242897,-1500.0,0.00014368,2]
[400140284,1767148242907,-1500.0,0.00014368,2]
[400140285,1767148242916,-492.23358821,0.00014368,2]
[400140286,1767148242926,-1500.0,0.00014368,2]
[400140287,1767148242935,-1183.82350415,0.00014368,2]
[400140288,1767148242944,-1149.22262001,0.00014368,2]
[400140289,1767148242953,-1500.0,0.00014368,2]
[400140290,1767148242963,-609.08385745,0.00014368,2]
[400140291,1767148242972,-1500.0,0.00014368,2]
[400140292,1767148242980,-1500.0,0.00014368,2]
[400140293,1767148242990,-1500.0,0.00014368,2]
[400140294,1767148242999,-1500.0,0.00014368,2]
[400140295,1767148243008,-1500.0,0.00014368,2]
[400140296,1767148243017,-1500.0,0.00014368,2]
[400140297,1767148243027,-1500.0,0.00014368,2]
[400140298,1767148243037,-1500.0,0.00014368,2]
[400140299,1767148243046,-500.0,0.00014368,2]
[400140300,1767148243055,-1500.0,0.00014368,2]
[400140301,1767148243064,-1500.0,0.00014368,2]
[400140302,1767148243074,-600.62609682,0.00014368,2]
[400140303,1767148243083,-1500.0,0.00014368,2]
[400140304,1767148243092,-849.3977641,0.00014368,2]
[400140305,1767148243102,-1500.0,0.00014368,2]
[400140306,1767148243111,-1500.0,0.00014368,2]
[400140307,1767148243120,-1500.0,0.00014368,2]
[400140308,1767148243130,-1500.0,0.00014368,2]
[400140309,1767148243139,-1500.0,0.00014368,2]
[400140310,1767148243149,-1500.0,0.00014368,2]
[400140311,1767148243158,-1500.0,0.00014368,2]
[400140312,1767148243167,-1500.0,0.00014368,2]
[400140313,1767148243176,-602.47879957,0.00014368,2]
[400140314,1767148243186,-186.16786472,0.00014368,2]
[400140315,1767148243196,-153.87842377,0.00014368,2]
[400140316,1767148243205,-1500.0,0.00014368,2]
[400140317,1767148243215,-1500.0,0.00014368,2]
[400140318,1767148243224,-1500.0,0.00014368,2]
[400140319,1767148243233,-1500.0,0.00014368,2]
[400140320,1767148243243,-1182.62181526,0.00014501,2]
[400140321,1767148243252,-151.0,0.000146,2]
[400140322,1767148243261,-500.0,0.00014642,2]
[400140323,1767148243271,-900.0,0.00014768,2]
[400140324,1767148243280,-1500.0,0.00014795,2]
[400140325,1767148243289,-370.59484017,0.00014795,2]
[400140326,1767148243298,-1500.0,0.00014795,2]
[400140327,1767148243307,-1001.27910227,0.00014795,2]
[400140328,1767148243316,-181.08073641,0.00014795,2]
[400140329,1767148243325,-656.47212183,0.00014795,2]
[400140330,1767148243334,-1500.0,0.00014795,2]
[400140331,1767148243344,-1078.13053233,0.00014795,2]
[400140332,1767148243353,-1068.53710429,0.00014795,2]
[400140333,1767148243363,-1425.73894344,0.00014795,2]
[400140334,1767148243372,-1500.0,0.00014795,2]
[400140335,1767148243382,-1500.0,0.00014795,2]
[400140336,1767148243392,-690.10820632,0.00014795,2]
[400140337,1767148243401,-1500.0,0.00014795,2]
[400140338,1767148243411,-1500.0,0.00014795,2]
[400140339,1767148243421,-1500.0,0.00014795,2]
[400140340,1767148243430,-463.63501052,0.00014795,2]
[400140341,1767148243440,-1500.0,0.00014795,2]
[400140342,1767148243449,-1500.0,0.00014795,2]
[400140343,1767148243459,-1500.0,0.00014795,2]
[400140344,1767148243468,-1501.43385257,0.00014795,2]
[400140345,1767148243477,-1500.0,0.00014795,2]
[400140346,1767148243487,-1500.0,0.00014795,2]
[400140347,1767148243497,-1504.00712805,0.00014795,2]
[400140348,1767148243506,-614.96936602,0.00014795,2]
[400140349,1767148243515,-524.36073826,0.00014795,2]
[400140350,1767148243525,-501.61073472,0.00014795,2]
[400140351,1767148243534,-1500.0,0.00014795,2]
[400140352,1767148243545,-1500.0,0.00014795,2]
[400140353,1767148243554,-1500.0,0.00014795,2]
[400140354,1767148243564,-1000.66687773,0.00014795,2]
[400140356,1767148243574,-1500.0,0.00014795,2]
[400140357,1767148243584,-1500.0,0.00014795,2]
[400140359,1767148243594,-1136.51090941,0.00014795,2]
[400140361,1767148243603,-1500.0,0.00014795,2]
[400140363,1767148243613,-1500.0,0.00014795,2]
[400140365,1767148243622,-1135.05317618,0.00014795,2]
[400140367,1767148243632,-1502.35610833,0.00014795,2]
[400140369,1767148243641,-1545.39972522,0.00014795,2]
[400140370,1767148243650,-1500.0,0.00014795,2]
[400140371,1767148243659,-1500.0,0.00014795,2]
[400140372,1767148243669,-1500.0,0.00014795,2]
[400140373,1767148243679,-1500.0,0.00014795,2]
[400140374,1767148243689,-1500.0,0.00014795,2]
[400140375,1767148243698,-1633.65989049,0.00014795,2]
[400140376,1767148243708,-1500.0,0.00014795,2]
[400140377,1767148243718,-1500.0,0.00014795,2]
[400140378,1767148243727,-1500.0,0.00014795,2]
[400140379,1767148243737,-1516.82099752,0.00014795,2]
[400140380,1767148243749,-1500.0,0.00014795,2]
[400140381,1767148243759,-1500.0,0.00014795,2]
[400140382,1767148243768,-1104.02175741,0.00014795,2]
[400140383,1767148243777,-1500.0,0.00014795,2]
[400140384,1767148243787,-1500.0,0.00014795,2]
[400140385,1767148243796,-1500.0,0.00014795,2]
[400140386,1767148243806,-1500.0,0.00014795,2]
[400140387,1767148243815,-2351.0,0.00014844,2]
[400140388,1767148243826,-587.0,0.00014847,2]
[400140389,1767148243835,-153.38490748,0.00014916,2]
[400140390,1767148243844,-531.8224898,0.00014916,2]
[400140391,1767148243854,-2000.0,0.00014916,2]
[400140392,1767148243863,-2000.0,0.00014916,2]
[400140393,1767148243872,-2000.0,0.00014916,2]
[400140394,1767148243881,-2000.0,0.00014916,2]
[400140395,1767148243891,-2000.0,0.00014916,2]
[400140396,1767148243900,-2000.0,0.00014916,2]
[400140398,1767148243909,-2000.0,0.00014916,2]
[400140400,1767148243919,-2000.0,0.00014916,2]
[400140401,1767148243928,-2000.0,0.00014916,2]
[400140402,1767148243937,-160.40400037,0.00014916,2]
[400140403,1767148243946,-500.0,0.00014916,2]
[400140404,1767148243955,-1306.02349709,0.00014916,2]
[400140405,1767148243965,-1579.52271368,0.00014916,2]
[400140406,1767148243974,-2000.0,0.00014916,2]
[400140407,1767148243984,-2000.0,0.00014916,2]
[400140408,1767148243993,-154.02698321,0.00014916,2]
[400140409,1767148244002,-2000.0,0.00014916,2]
[400140410,1767148244011,-347.05017991,0.00014916,2]
[400140411,1767148244020,-2000.0,0.00014916,2]
[400140412,1767148244029,-2000.0,0.00014916,2]
[400140413,1767148244038,-1707.04891634,0.00014916,2]
[400140414,1767148244047,-2000.0,0.00014916,2]
[400140415,1767148244057,-924.40432946,0.00014916,2]
[400140416,1767148244066,-2000.0,0.00014916,2]
[400140417,1767148244075,-2000.0,0.00014916,2]
[400140418,1767148244085,-2000.0,0.00014916,2]
[400140419,1767148244095,-2351.0,0.00014917,2]
[400140420,1767148244103,-80000.0,0.00015,2]
[400140421,1767148244112,-27976.29375996,0.00015,2]
[400140422,1767148244121,-150.77099208,0.00015,2]
[400140423,1767148244131,-100000.0,0.00015028,2]
[400140424,1767148244140,-803.5950816,0.00015068,2]
[400140425,1767148244266,-3907.08,0.00015157,2]
[400140426,1767148244276,-500.0,0.0001519,2]
[400140427,1767148244286,-1359.46767772,0.00015225,2]
[400140428,1767148244295,-864.0,0.00015251,2]
[400140429,1767148244305,-1200.0,0.00015316,2]
[400140430,1767148244315,-1648.95093186,0.00015342,2]
[400140431,1767148244324,-653.38246347,0.00015342,2]
[400140432,1767148244334,-402.01463508,0.00015342,2]
[400140433,1767148244344,-1165.86238698,0.00015342,2]
[400140434,1767148244353,-1999.3887162,0.00015342,2]
[400140435,1767148244363,-288.21762562,0.00015342,2]
[400140436,1767148244372,-503.07338889,0.00015342,2]
[400140437,1767148244381,-2000.0,0.00015342,2]
[400140438,1767148244391,-915.94669576,0.00015342,2]
[400140439,1767148244401,-516.87119182,0.00015342,2]
[400140440,1767148244411,-1072.64960671,0.00015342,2]
[400140441,1767148244420,-507.91355612,0.00015342,2]
[400140442,1767148244431,-2000.0,0.00015342,2]
[400140443,1767148244441,-1384.30858632,0.00015342,2]
[400140444,1767148244451,-1966.55656616,0.00015342,2]
[400140445,1767148244460,-1005.23629678,0.00015342,2]
[400140446,1767148244470,-791.10184317,0.00015342,2]
[400140447,1767148244480,-705.75062246,0.00015342,2]
[400140448,1767148244490,-2129.31875673,0.00015342,2]
[400140449,1767148244500,-1531.44929217,0.00015342,2]
[400140450,1767148244510,-1004.96402588,0.00015342,2]
[400140451,1767148244519,-1297.38655962,0.00015342,2]
[400140452,1767148244529,-2000.0,0.00015342,2]
[400140453,1767148244539,-602.77058771,0.00015342,2]
[400140454,1767148244549,-501.68831439,0.00015342,2]
[400140455,1767148244559,-502.54472719,0.00015342,2]
[400140456,1767148244568,-2001.67734075,0.00015342,2]
[400140457,1767148244578,-502.02163491,0.00015342,2]
[400140458,1767148244587,-2000.0,0.00015342,2]
[400140459,1767148244597,-2000.0,0.00015342,2]
[400140460,1767148244606,-502.12822371,0.00015342,2]
[400140461,1767148244615,-1504.50560439,0.00015342,2]
[400140462,1767148244625,-2000.0,0.00015342,2]
[400140463,1767148244634,-2001.75988266,0.00015342,2]
[400140464,1767148244643,-291.53853571,0.00015464,2]
[400140465,1767148244652,-2500.0,0.00015464,2]
[400140466,1767148244662,-318.87701711,0.00015464,2]
[400140467,1767148244672,-2500.0,0.00015464,2]
[400140468,1767148244681,-2500.0,0.00015464,2]
[400140469,1767148244691,-2500.0,0.00015464,2]
[400140470,1767148244700,-451.0928214,0.00015464,2]
[400140471,1767148244710,-2500.0,0.00015464,2]
[400140472,1767148244719,-2500.0,0.00015464,2]
[400140473,1767148244729,-2500.0,0.00015464,2]
[400140474,1767148244739,-2500.0,0.00015464,2]
[400140475,1767148244752,-2500.0,0.00015464,2]
[400140476,1767148244762,-768.13998817,0.00015464,2]
[400140477,1767148244773,-501.82211209,0.00015464,2]
[400140478,1767148244783,-2500.0,0.00015464,2]
[400140479,1767148244793,-2500.0,0.00015464,2]
[400140480,1767148244803,-2500.0,0.00015464,2]
[400140481,1767148244812,-269.75973457,0.00015464,2]
[400140482,1767148244823,-2500.0,0.00015464,2]
[400140483,1767148244833,-500.93902034,0.00015548,2]
[400140484,1767148244843,-167.533553,0.00015633,2]
[400140485,1767148244852,-12038.24042069,0.00015824,2]
[400140486,1767148244863,-1202.05494296,0.00015864,2]
[400140487,1767148244872,-2104.21263858,0.0001589,2]
[400140488,1767148244881,-903.04207638,0.0001589,2]
[400140489,1767148244892,-2500.0,0.0001589,2]
[400140490,1767148244901,-2500.0,0.0001589,2]
[400140491,1767148244909,-1519.2068046,0.0001589,2]
[400140492,1767148244919,-502.92641723,0.0001589,2]
[400140493,1767148244929,-3000.0,0.00016012,2]
[400140494,1767148244938,-3000.0,0.00016012,2]
[400140495,1767148244947,-3000.0,0.00016012,2]
[400140496,1767148244957,-3000.0,0.00016012,2]
[400140497,1767148244967,-2508.62893178,0.00016012,2]
[400140498,1767148244977,-356.70683283,0.00016012,2]
[400140499,1767148244986,-3000.0,0.00016012,2]
[400140500,1767148244996,-3000.0,0.00016012,2]
[400140501,1767148245005,-3000.0,0.00016012,2]
[400140502,1767148245015,-3000.0,0.00016012,2]
[400140503,1767148245024,-194.42033107,0.00016012,2]
[400140504,1767148245033,-3000.0,0.00016012,2]
[400140505,1767148245043,-3000.0,0.00016012,2]
[400140506,1767148245052,-1320.0,0.0001629,2]
[400140507,1767148245062,-250.0,0.0001629,2]
[400140508,1767148245073,-823.0,0.00016293,2]
[400140509,1767148245083,-5209.44,0.00016323,2]
[400140510,1767148245092,-372.20926207,0.00016326,2]
[400140511,1767148245102,-500.0,0.00016366,2]
[400140512,1767148245111,-3292.0,0.00016408,2]
[400140513,1767148245120,-500.0,0.00016438,2]
[400140514,1767148245130,-495.78642928,0.00016438,2]
[400140515,1767148245140,-3000.0,0.00016438,2]
[400140516,1767148245150,-3000.0,0.00016438,2]
[400140517,1767148245159,-200.0,0.00016473,2]
[400140518,1767148245170,-3081.75382253,0.0001656,2]
[400140519,1767148245179,-3500.0,0.0001656,2]
[400140520,1767148245189,-341.86675576,0.0001656,2]
[400140521,1767148245199,-576.89571839,0.0001656,2]
[400140522,1767148245208,-3522.87177869,0.0001656,2]
[400140523,1767148245218,-2800.51799825,0.0001656,2]
[400140524,1767148245228,-3500.0,0.0001656,2]
[400140525,1767148245238,-952.19024228,0.0001656,2]
[400140526,1767148245247,-3500.0,0.0001656,2]
[400140527,1767148245257,-3500.0,0.0001656,2]
[400140528,1767148245266,-1359.46767772,0.00016586,2]
[400140529,1767148245275,-151.0,0.000166,2]